bitfinex/quotes_ETHUSD_20251010
["timestamp","ask_amount","ask_price","bid_price","bid_amount"]
[1760084707545,0.0016,4337.6,4337.5,20.42621106]
[1760084708436,0.0016,4337.6,4337.5,20.09921106]
[1760084708638,0.0016,4337.6,4337.5,20.42621106]
[1760084709429,0.0008,4337.6,4337.5,20.42621106]
[1760084713155,0.0008,4337.6,4337.5,11.52421106]
[1760084713317,0.0008,4337.6,4337.5,20.42621106]
[1760084715184,0.002,4338.0,4337.9,2.30526291]
[1760084715332,0.002,4338.0,4337.9,15.10675431]
[1760084715658,0.01,4338.9,4338.8,2.30478473]
[1760084715859,0.01,4338.9,4338.8,15.35474984]
[1760084716042,0.01,4338.9,4338.8,15.46994984]
[1760084716743,0.01,4338.9,4338.8,9.0172]
[1760084716946,0.01,4338.9,4338.8,15.46994984]
[1760084719978,0.01,4338.9,4338.8,17.49193196]
[1760084720476,0.012,4338.9,4338.8,17.16393196]
[1760084720835,0.012,4338.9,4338.8,17.61383196]
[1760084721246,0.012,4338.9,4338.8,15.35374984]
[1760084722430,0.012,4338.9,4338.8,15.68074984]
[1760084725065,0.012,4338.9,4338.8,6.77974984]
[1760084725265,0.012,4338.9,4338.8,15.68074984]
[1760084726279,0.012,4338.9,4338.8,15.77308178]
[1760084726458,0.012,4338.9,4338.8,18.02485223]
[1760084727586,0.012,4338.9,4338.8,19.94485223]
[1760084729877,0.012,4338.9,4338.8,20.06005223]
[1760084731501,0.0112,4338.9,4338.8,20.06005223]
[1760084739195,0.0112,4338.9,4338.8,20.69365223]
[1760084739399,0.0112,4338.9,4338.8,30.17145223]
[1760084743319,0.0112,4338.9,4338.8,34.31941734]
[1760084743526,1e-08,4338.9,4338.8,34.31941734]
[1760084747355,1e-08,4338.9,4338.8,30.17145223]
[1760084749444,1e-08,4338.9,4338.8,30.28665223]
[1760084751531,1e-08,4338.9,4338.8,30.28465223]
[1760084751726,1e-08,4338.9,4338.8,11.79265223]
[1760084752068,1e-08,4338.9,4338.8,29.65105223]
[1760084753146,1e-08,4338.9,4338.8,11.15905223]
[1760084753346,1e-08,4338.9,4338.8,27.39928178]
[1760084753569,0.4374,4339.8,4339.4,2.30442099]
[1760084753772,0.00920001,4339.9,4339.5,8.02]
[1760084753978,0.4374,4339.7,4339.5,10.32441183]
[1760084754556,0.4374,4339.7,4339.4,2.30445661]
[1760084754771,0.4374,4339.7,4339.5,11.20238985]
[1760084755149,0.00920001,4339.9,4339.5,11.20238985]
[1760084755476,0.44660001,4339.9,4339.5,11.20238985]
[1760084755679,0.00920001,4339.9,4339.5,2.30438985]
[1760084755880,0.00920001,4339.9,4339.0,4.14796511]
[1760084755881,0.4374,4339.8,4339.0,4.14796511]
[1760084756085,0.23090001,4339.9,4339.1,5.988]
[1760084756402,0.4374,4339.7,4339.1,0.69250079]
[1760084756544,0.4374,4339.7,4338.8,4.14796511]
[1760084756754,0.4374,4339.6,4338.9,5.82813936]
[1760084756952,0.4374,4339.6,4339.0,2.30467709]
[1760084757260,0.4403,4339.5,4339.1,8.9121382]
[1760084757466,0.4403,4339.4,4339.1,8.898]
[1760084757666,0.4403,4339.3,4339.1,11.2026246]
[1760084757871,0.4403,4339.3,4339.1,8.898]
[1760084758450,0.4403,4339.3,4339.1,11.20261993]
[1760084758775,2.30426784,4339.8,4339.1,11.20261993]
[1760084758968,0.4403,4339.6,4339.2,2.31869743]
[1760084759276,0.4403,4339.5,4339.3,6.5]
[1760084759677,0.67320001,4339.9,4339.3,6.5]
[1760084759877,0.23290001,4339.9,4339.3,8.80447734]
[1760084760047,0.4403,4339.8,4339.3,8.80447734]
[1760084760261,0.4403,4339.8,4339.3,6.5]
[1760084760457,0.01120001,4339.9,4339.4,0.01413472]
[1760084760766,0.45150001,4339.9,4339.5,6.5]
[1760084761070,0.4403,4339.8,4339.5,6.5]
[1760084761275,0.4403,4339.7,4339.6,6.5]
[1760084761473,0.4403,4339.7,4339.2,2.30453408]
[1760084761677,0.4403,4339.6,4339.3,8.898]
[1760084761994,0.4403,4339.5,4339.1,0.69250558]
[1760084762192,0.4403,4339.4,4339.2,6.5]
[1760084762370,0.4403,4339.3,4339.2,6.5]
[1760084764660,0.1152,4339.6,4339.2,6.5]
[1760084764866,0.4403,4339.5,4339.3,6.5]
[1760084765089,0.4403,4339.4,4339.3,6.5]
[1760084765287,0.4403,4339.4,4338.8,0.1162]
[1760084765490,0.4403,4339.4,4338.9,8.898]
[1760084765690,0.46910648,4339.3,4338.8,0.1162]
[1760084766002,0.1152,4338.9,4338.8,0.001]
[1760084766167,0.14400914,4338.9,4338.8,0.001]
[1760084766363,0.5555,4338.9,4338.8,2.109]
[1760084766567,2.86023161,4338.9,4338.8,2.109]
[1760084766870,2.86023161,4338.9,4338.8,3.823]
[1760084767094,0.1152,4338.9,4338.8,3.823]
[1760084767397,0.5555,4338.9,4338.8,3.823]
[1760084768398,0.5555,4338.9,4338.8,0.001]
[1760084768608,0.5555,4338.9,4338.8,6.501]
[1760084769671,0.5555,4338.9,4338.8,0.001]
[1760084769876,0.5555,4338.9,4338.8,6.501]
[1760084770310,2.86023161,4338.9,4338.8,0.001]
[1760084770489,2.86023161,4338.9,4338.8,6.501]
[1760084770804,2.86023161,4338.9,4338.8,0.001]
[1760084770805,0.5555,4338.9,4338.8,0.001]
[1760084771010,2.86023161,4338.9,4338.8,6.502]
[1760084771374,0.5555,4338.9,4338.8,6.502]
[1760084772409,0.1152,4338.9,4338.8,6.502]
[1760084775016,0.5555,4338.9,4338.8,6.502]
[1760084775632,0.5547,4338.9,4338.8,6.502]
[1760084776539,0.5547,4338.9,4338.8,0.001]
[1760084776739,0.5547,4338.9,4338.8,6.502]
[1760084778334,0.5547,4338.9,4338.8,8.80678473]
[1760084778534,0.1144,4338.9,4338.8,9.9273632]
[1760084780333,0.1144,4338.9,4338.8,6.502]
[1760084780741,0.1152,4339.3,4338.9,2.30471464]
[1760084780900,0.1152,4339.3,4338.9,2.3188555]
[1760084781316,0.4403,4339.2,4338.9,2.3188555]
[1760084781524,0.1152,4339.3,4338.9,0.01414086]
[1760084781727,0.1152,4339.3,4339.0,2.30463654]
[1760084782039,0.1152,4339.3,4338.9,0.01414086]
[1760084782040,0.4403,4339.2,4339.1,6.501]
[1760084785012,0.4403,4339.2,4338.8,0.001]
[1760084785013,0.4403,4339.2,4338.8,2.30577163]
[1760084785215,0.4403,4339.1,4338.9,8.9]
[1760084785415,0.4403,4339.0,4338.9,11.2047307]
[1760084786311,0.4403,4339.0,4338.9,8.9]
[1760084786955,0.4403,4339.0,4338.8,0.001]
[1760084787152,0.23280001,4339.9,4338.8,0.001]
[1760084787153,0.4346,4338.9,4338.8,0.001]
[1760084787445,0.4346,4338.9,4338.8,4.818]
[1760084788742,0.1152,4339.0,4338.8,4.818]
[1760084789110,0.4346,4338.9,4338.8,4.818]
[1760084792248,0.4346,4338.9,4338.8,0.001]
[1760084792412,0.4346,4338.9,4338.8,6.502]
[1760084792614,0.46340914,4338.9,4338.8,6.502]
[1760084793226,0.46340914,4338.9,4338.8,0.001]
[1760084793427,0.46340914,4338.9,4338.8,4.435]
[1760084793647,0.4346,4338.9,4338.8,4.435]
[1760084796159,0.02880383,4339.7,4338.9,2.30473161]
[1760084796458,0.4346,4339.2,4338.8,6.73974732]
[1760084796753,0.4346,4339.1,4338.8,6.73974732]
[1760084796954,0.4346,4339.0,4338.8,6.73974732]
[1760084797774,0.4338,4339.0,4338.8,6.73974732]
[1760084798360,0.1152,4339.3,4338.8,6.73974732]
[1760084798542,0.002,4339.2,4338.8,6.73974732]
[1760084798857,0.002,4339.2,4338.9,2.30473134]
[1760084799164,0.002,4339.2,4338.8,4.435]
[1760084799456,0.002,4339.2,4338.9,0.01414136]
[1760084799657,0.002,4339.2,4339.0,2.30467732]
[1760084799863,0.4366,4339.2,4339.1,6.501]
[1760084801742,0.002,4339.2,4339.1,6.501]
[1760084802274,0.4366,4339.2,4339.1,6.501]
[1760084805547,0.002,4339.2,4339.1,6.501]
[1760084809384,0.4703,4339.2,4339.1,6.501]
[1760084809543,0.002,4339.2,4339.1,6.501]
[1760084810145,0.002,4339.2,4339.1,9.91676762]
[1760084810964,0.002,4339.2,4339.1,10.24456762]
[1760084811482,0.002,4339.2,4339.1,10.35976762]
[1760084811650,0.002,4339.2,4339.1,15.23925955]
[1760084813260,0.4703,4339.2,4339.1,1.22634224]
[1760084813479,0.4703,4339.2,4339.1,11.31882538]
[1760084813681,0.002,4339.2,4339.1,11.31882538]
[1760084814677,0.002,4339.2,4339.1,11.20362538]
[1760084819681,0.0012,4339.2,4339.1,11.20362538]
[1760084821464,0.0012,4339.2,4339.1,15.34937721]
[1760084821659,0.0012,4339.2,4339.1,17.12650608]
[1760084822183,0.0012,4339.2,4339.1,8.22750608]
[1760084822482,0.0012,4339.2,4339.1,15.34937721]
[1760084822851,0.0012,4339.2,4339.1,6.45037721]
[1760084823050,0.0012,4339.2,4339.1,15.34937721]
[1760084824863,0.0012,4339.2,4339.1,12.95037721]
[1760084825069,0.0012,4339.2,4339.1,15.34937721]
[1760084826093,0.0012,4339.2,4339.1,17.12650608]
[1760084827293,0.0012,4339.2,4339.1,8.22750608]
[1760084827487,0.4698,4339.2,4339.1,15.34937721]
[1760084827680,0.0012,4339.2,4339.1,15.34937721]
[1760084828396,0.0012,4339.2,4339.1,6.45037721]
[1760084828720,0.0012,4339.2,4339.1,15.34937721]
[1760084829763,0.0012,4339.2,4339.1,15.67717721]
[1760084830072,0.0012,4339.2,4339.1,17.48708551]
[1760084834605,0.0012,4339.2,4339.1,23.66803734]
[1760084834767,0.00920001,4339.9,4339.8,2.30425365]
[1760084835108,2.30345894,4341.3,4339.8,2.30425365]
[1760084835109,0.1144,4341.7,4339.9,2.24954416]
[1760084835334,0.1144,4341.7,4340.8,4.26015183]
[1760084835605,0.1144,4341.1,4340.8,3.583]
[1760084836105,0.4786,4340.9,4340.8,3.583]
[1760084836612,0.01,4340.9,4340.8,3.583]
[1760084838198,0.01,4340.9,4340.8,7.72875183]
[1760084838404,0.01,4340.9,4340.8,10.03247464]
[1760084840054,0.01,4340.9,4340.8,9.42189027]
[1760084840233,0.012,4340.9,4340.8,9.42189027]
[1760084840551,0.012,4340.9,4340.8,5.51109027]
[1760084840698,0.012,4340.9,4340.8,9.9846421]
[1760084840894,0.012,4340.9,4340.8,18.8806421]
[1760084841940,0.0112,4340.9,4340.8,18.8806421]
[1760084843110,0.0112,4340.9,4340.8,14.73489027]
[1760084843898,0.0112,4340.9,4340.8,14.40709027]
[1760084845024,0.0112,4340.9,4340.8,14.73489027]
[1760084846013,0.0112,4340.9,4340.8,18.8806421]
[1760084846441,0.0112,4340.9,4340.8,9.9846421]
[1760084846660,0.0112,4340.9,4340.8,18.8796421]
[1760084850161,0.0112,4340.9,4340.8,18.9940421]
[1760084850830,0.0112,4340.9,4340.8,16.5960421]
[1760084851027,0.0112,4340.9,4340.8,18.9940421]
[1760084851393,0.0112,4340.9,4340.8,9.7712421]
[1760084851548,0.0112,4340.9,4340.8,14.52049027]
[1760084851881,0.0112,4340.9,4340.8,3.70549027]
[1760084852089,0.0112,4340.9,4340.8,11.31312281]
[1760084852887,0.0112,4340.9,4340.8,2.41812281]
[1760084853190,0.0112,4340.9,4340.8,0.1144]
[1760084853191,0.4637,4340.9,4340.8,0.1144]
[1760084853482,0.4637,4340.9,4340.8,6.497]
[1760084853779,0.4637,4340.9,4340.8,6.496]
[1760084855153,0.4637,4340.9,4340.8,8.79972281]
[1760084855440,0.0112,4340.9,4340.8,6.496]
[1760084855644,0.0112,4340.9,4340.8,8.79972281]
[1760084860992,0.0112,4340.9,4340.8,8.80072281]
[1760084863098,0.0112,4340.9,4340.8,9.12852281]
[1760084863297,0.0112,4340.9,4340.8,10.92613265]
[1760084863930,0.0104,4340.9,4340.8,10.92613265]
[1760084865962,0.0104,4340.9,4340.8,12.96053265]
[1760084872042,0.0104,4340.9,4340.8,15.02973265]
[1760084872353,0.0104,4340.9,4340.8,6.13673265]
[1760084872560,0.0104,4340.9,4340.8,11.31212281]
[1760084872733,0.0104,4340.9,4340.8,2.41912281]
[1760084872931,0.0104,4340.9,4340.8,11.31212281]
[1760084873479,0.0104,4340.9,4340.8,2.41912281]
[1760084873676,0.0104,4340.9,4340.8,0.1154]
[1760084873885,0.4539,4340.9,4340.8,6.5234]
[1760084874089,0.4539,4340.9,4340.8,0.001]
[1760084874301,0.4539,4340.9,4340.8,8.894]
[1760084874578,0.4539,4340.9,4340.8,11.19772281]
[1760084874872,0.0104,4340.9,4340.8,6.497]
[1760084875061,0.4539,4340.9,4340.8,8.894]
[1760084875484,0.0104,4340.9,4340.8,11.19772281]
[1760084876142,0.0104,4340.9,4340.8,8.894]
[1760084876877,0.0104,4340.9,4340.8,11.19772281]
[1760084877577,0.0104,4340.9,4340.8,0.001]
[1760084877756,0.4679,4340.9,4340.8,8.894]
[1760084877957,0.0104,4340.9,4340.8,11.19772281]
[1760084880355,0.0104,4340.9,4340.8,13.00667195]
[1760084880561,0.0104,4340.9,4340.8,13.44887195]
[1760084881687,0.0104,4340.9,4340.8,15.36887195]
[1760084882190,1e-08,4340.9,4340.8,15.48327195]
[1760084882778,1e-08,4340.9,4340.8,6.59027195]
[1760084882980,1e-08,4340.9,4340.8,25.07627195]
[1760084883553,1e-08,4340.9,4340.8,29.94950999]
[1760084884154,1e-08,4340.9,4340.8,11.46350999]
[1760084884376,1e-08,4340.9,4340.8,29.94750999]
[1760084885948,0.00920001,4341.9,4341.7,2.30319404]
[1760084886151,0.00920001,4341.9,4341.8,11.19619222]
[1760084892233,0.00920001,4341.9,4341.8,6.495]
[1760084892437,0.00920001,4341.9,4341.8,2.30319222]
[1760084892645,0.00920001,4341.9,4341.8,11.19519222]
[1760084894343,0.00920001,4341.9,4341.7,2.30323653]
[1760084894527,0.00920001,4341.9,4339.2,4.45297223]
[1760084894528,0.00920001,4341.9,4341.8,8.892]
[1760084894706,0.00920001,4341.9,4341.1,0.4575]
[1760084894905,0.00920001,4341.9,4341.5,2.3033213]
[1760084895106,0.00920001,4341.9,4341.6,6.495]
[1760084895316,0.00920001,4341.9,4341.6,8.7982874]
[1760084895517,0.00920001,4341.9,4341.6,2.3032874]
[1760084895712,0.00920001,4341.9,4341.7,8.892]
[1760084896537,0.4575,4341.8,4341.7,8.892]
[1760084896741,0.4575,4341.8,4341.6,0.1144]
[1760084896961,0.23890001,4341.9,4341.7,6.495]
[1760084897599,0.4575,4341.8,4341.7,6.495]
[1760084898943,0.4575,4341.8,4341.2,0.1144]
[1760084899149,0.4575,4341.8,4341.5,2.397]
[1760084899330,0.4575,4341.7,4341.6,6.495]
[1760084899865,0.4575,4341.7,4341.2,0.1144]
[1760084900049,0.4575,4341.7,4341.5,2.397]
[1760084900229,0.35530001,4341.9,4341.6,6.495]
[1760084900752,0.4575,4341.8,4341.6,6.495]
[1760084900958,0.4575,4341.7,4341.6,6.495]
[1760084901265,0.12560001,4341.9,4341.6,8.79829832]
[1760084902777,0.12560001,4341.9,4341.6,6.495]
[1760084903129,0.58310001,4341.9,4341.6,6.495]
[1760084903566,0.58310001,4341.9,4341.6,8.79827482]
[1760084904473,0.12560001,4341.9,4341.6,8.79827482]
[1760084904644,0.58310001,4341.9,4341.6,8.79827482]
[1760084905673,0.12560001,4341.9,4341.6,8.79827482]
[1760084905976,0.4575,4341.8,4341.6,8.79827482]
[1760084906276,0.4575,4341.7,4341.6,6.495]
[1760084908279,0.4567,4341.7,4341.6,6.495]
[1760084908481,0.12560001,4341.9,4341.6,6.495]
[1760084908886,0.12560001,4341.9,4341.7,2.30324527]
[1760084909183,0.12560001,4341.9,4341.8,6.495]
[1760084910243,0.12560001,4341.9,4341.8,8.79819222]
[1760084917100,0.01120001,4341.9,4341.8,10.78262136]
[1760084917310,0.01120001,4341.9,4341.8,11.11122136]
[1760084919209,0.01120001,4341.9,4341.8,10.78262136]
[1760084923228,0.01120001,4341.9,4341.8,11.11122136]
[1760084924223,0.01120001,4341.9,4341.8,10.78262136]
[1760084925144,0.01120001,4341.9,4341.8,11.11122136]
[1760084927025,0.01120001,4341.9,4341.8,10.78262136]
[1760084930111,0.01040001,4341.9,4341.8,10.78262136]
[1760084933436,0.01040001,4341.9,4341.8,8.91259222]
[1760084936543,0.01040001,4341.9,4341.8,6.6094]
[1760084936840,0.45110001,4341.9,4341.8,9.0054]
[1760084937287,0.45110001,4341.9,4341.8,11.30859222]
[1760084937480,0.01040001,4341.9,4341.8,11.30859222]
[1760084937682,0.01040001,4341.9,4341.8,9.0054]
[1760084938585,0.01040001,4341.9,4341.8,9.0064]
[1760084938967,0.01040001,4341.9,4341.8,0.1154]
[1760084939167,0.48120001,4341.9,4341.8,8.892]
[1760084940268,0.01040001,4341.9,4341.8,11.19519222]
[1760084942203,0.01040001,4341.9,4341.8,8.892]
[1760084943429,0.48120001,4341.9,4341.8,8.892]
[1760084944521,0.48120001,4341.9,4341.8,6.495]
[1760084945099,0.69970001,4341.9,4341.8,6.495]
[1760084945299,0.81410001,4341.9,4341.8,6.495]
[1760084945699,0.81410001,4341.9,4341.8,0.001]
[1760084945940,0.81410001,4341.9,4341.8,6.495]
[1760084947328,0.81410001,4341.9,4341.8,0.001]
[1760084947503,0.81410001,4341.9,4341.8,6.495]
[1760084949436,3.11723918,4341.9,4341.8,0.001]
[1760084949620,0.72848924,4341.9,4341.8,6.495]
[1760084949802,3.03162841,4341.9,4341.8,6.495]
[1760084950127,0.72848924,4341.9,4341.8,6.495]
[1760084950514,0.69970001,4341.9,4341.8,6.495]
[1760084950722,0.48120001,4341.9,4341.8,6.495]
[1760084950903,0.01040001,4341.9,4341.8,6.495]
[1760084952437,0.00960001,4341.9,4341.8,6.495]
[1760084952607,0.48040001,4341.9,4341.8,6.495]
[1760084954609,0.69890001,4341.9,4341.8,6.495]
[1760084954928,0.69890001,4341.9,4341.8,6.496]
[1760084955330,0.69890001,4341.9,4341.8,0.001]
[1760084955519,0.69890001,4341.9,4341.8,6.496]
[1760084956134,0.69890001,4341.9,4341.8,0.001]
[1760084956335,3.00203918,4341.9,4341.8,6.496]
[1760084956774,0.72768924,4341.9,4341.8,6.496]
[1760084958580,0.72768924,4341.9,4341.8,0.001]
[1760084958736,0.72768924,4341.9,4341.8,6.496]
[1760084958737,3.03082841,4341.9,4341.8,6.496]
[1760084959145,0.72768924,4341.9,4341.8,6.496]
[1760084959370,0.00960001,4341.9,4341.8,10.63786252]
[1760084959572,0.00960001,4341.9,4341.8,12.94105474]
[1760084959747,0.12400001,4341.9,4341.8,12.94105474]
[1760084961744,0.12400001,4341.9,4341.8,10.63786252]
[1760084962352,0.12400001,4341.9,4341.8,12.94105474]
[1760084962659,0.12400001,4341.9,4341.8,10.63786252]
[1760084963373,0.12400001,4341.9,4341.8,12.94105474]
[1760084963573,0.00960001,4341.9,4341.8,14.46559513]
[1760084965362,0.00960001,4341.9,4341.8,12.16240291]
[1760084965678,0.00960001,4341.9,4341.8,10.32373261]
[1760084966677,0.48040001,4341.9,4341.8,10.41654039]
[1760084967078,0.00960001,4341.9,4341.8,8.892]
[1760084967585,0.00960001,4341.9,4341.8,11.19519222]
[1760084967754,0.00960001,4341.9,4341.8,15.33705474]
[1760084969194,0.00960001,4341.9,4341.8,11.19519222]
[1760084969345,0.00960001,4341.9,4341.8,2.30419222]
[1760084969546,0.00960001,4341.9,4341.8,6.495]
[1760084970245,0.69170001,4341.9,4341.8,0.001]
[1760084970445,0.69170001,4341.9,4341.8,0.648]
[1760084971421,0.69170001,4341.9,4341.8,0.001]
[1760084971624,0.69170001,4341.9,4341.8,6.495]
[1760084972028,0.69170001,4341.9,4341.8,0.001]
[1760084972238,0.69170001,4341.9,4341.8,6.495]
[1760084972924,0.69170001,4341.9,4341.8,0.001]
[1760084973229,0.69170001,4341.9,4341.8,6.495]
[1760084973720,0.72048924,4341.9,4341.8,6.495]
[1760084973925,3.02362841,4341.9,4341.8,0.001]
[1760084974081,0.72048924,4341.9,4341.8,6.495]
[1760084974284,3.02282841,4341.9,4341.8,6.495]
[1760084975144,3.02282841,4341.9,4341.8,0.001]
[1760084975349,3.02282841,4341.9,4341.8,6.495]
[1760084978351,0.71968924,4341.9,4341.8,6.495]
[1760084978648,3.02282841,4341.9,4341.8,6.495]
[1760084980967,4.94282841,4341.9,4341.8,0.001]
[1760084981248,4.91403918,4341.9,4341.8,0.001]
[1760084981955,5.00635301,4341.9,4341.8,0.001]
[1760084982615,5.63995301,4341.9,4341.8,0.001]
[1760084996372,5.63915301,4341.9,4341.8,0.001]
[1760084997854,5.63915301,4341.9,4341.8,0.001]
[1760085000876,6.13598568,4341.9,4341.8,0.001]
[1760085003002,5.63915301,4341.9,4341.8,0.001]
[1760085003174,12.13515301,4341.9,4341.8,0.001]
[1760085006130,16.27701553,4341.9,4341.8,0.001]
[1760085006323,16.77402693,4341.9,4341.8,0.001]
[1760085007588,17.51070102,4341.9,4341.8,0.001]
[1760085009013,18.13179178,4341.9,4341.8,0.001]
[1760085009814,17.51070102,4341.9,4341.8,0.001]
[1760085011121,11.01470102,4341.9,4341.8,0.001]
[1760085011425,19.90870102,4341.9,4341.8,0.001]
[1760085012142,11.01470102,4341.9,4341.8,0.001]
[1760085012307,17.51070102,4341.9,4341.8,0.001]
[1760085013260,6.13616441,4341.9,4341.8,0.001]
[1760085013464,12.63216441,4341.9,4341.8,0.001]
[1760085013960,6.13616441,4341.9,4341.8,0.001]
[1760085014141,12.63216441,4341.9,4341.8,0.001]
[1760085014868,11.50155301,4341.9,4341.8,0.001]
[1760085015053,12.13515301,4341.9,4341.8,0.001]
[1760085015929,12.63219781,4341.9,4341.8,0.001]
[1760085016157,12.13515301,4341.9,4341.8,0.001]
[1760085016372,12.63220674,4341.9,4341.8,0.001]
[1760085016672,11.99860674,4341.9,4341.8,0.001]
[1760085017265,12.63220674,4341.9,4341.8,0.001]
[1760085018428,12.63140674,4341.9,4341.8,0.001]
[1760085019370,11.99780674,4341.9,4341.8,0.001]
[1760085020277,10.71140674,4341.9,4341.8,0.001]
[1760085020449,10.21435301,4341.9,4341.8,0.001]
[1760085022638,3.71835301,4341.9,4341.8,0.001]
[1760085022870,10.21435301,4341.9,4341.8,0.001]
[1760085023740,3.71835301,4341.9,4341.8,0.001]
[1760085025142,3.08475301,4341.9,4341.8,0.001]
[1760085025344,0.68930001,4341.9,4341.8,0.001]
[1760085025774,2.99243918,4341.9,4341.8,0.001]
[1760085027692,0.03598924,4341.9,4341.8,0.001]
[1760085027909,0.00720001,4341.9,4341.8,0.001]
[1760085028270,0.45350001,4341.9,4341.8,0.001]
[1760085028465,0.45350001,4341.9,4341.8,0.23152399]
[1760085028667,0.00720001,4341.9,4341.8,2.53471621]
[1760085029015,2.98463918,4341.9,4341.8,0.001]
[1760085029364,3.01342841,4341.9,4341.8,0.001]
[1760085031002,0.68150001,4341.9,4341.8,0.001]
[1760085031257,0.45350001,4341.9,4341.8,0.001]
[1760085033096,0.48228924,4341.9,4341.8,0.001]
[1760085033680,0.03598924,4341.9,4341.8,0.001]
[1760085033870,0.48228924,4341.9,4341.8,0.001]
[1760085036324,0.00720001,4341.9,4341.8,0.001]
[1760085037930,0.00720001,4341.9,4341.8,0.2315289]
[1760085038838,0.45350001,4341.9,4341.8,0.2315289]
[1760085038991,0.00720001,4341.9,4341.8,0.2315289]
[1760085039194,0.00720001,4341.9,4341.8,2.30419222]
[1760085039424,0.00720001,4341.9,4341.8,5.0448961]
[1760085039628,0.00720001,4341.9,4341.8,5.03079222]
[1760085040621,0.00640001,4341.9,4341.8,5.03079222]
[1760085040800,0.00640001,4341.9,4341.8,6.92473484]
[1760085042220,0.00640001,4341.9,4341.8,13.41773484]
[1760085044742,0.00640001,4341.9,4341.8,13.53213484]
[1760085045037,0.00640001,4341.9,4341.8,4.64113484]
[1760085045238,0.00640001,4341.9,4341.8,11.30959222]
[1760085046088,0.00640001,4341.9,4341.8,0.1154]
[1760085046323,0.00640001,4341.9,4341.8,5.718]
[1760085046525,0.00640001,4341.9,4341.8,8.02119222]
[1760085047033,0.00640001,4341.9,4341.8,5.718]
[1760085047373,0.00640001,4341.9,4341.8,0.001]
[1760085047374,0.45220001,4341.9,4341.8,0.001]
[1760085047559,0.45220001,4341.9,4341.8,6.495]
[1760085047862,0.00640001,4341.9,4341.8,6.495]
[1760085048031,0.45220001,4341.9,4341.8,6.495]
[1760085048427,0.00640001,4341.9,4341.8,7.62606921]
[1760085048672,0.00640001,4341.9,4341.8,9.92926143]
[1760085048824,0.00640001,4341.9,4341.8,14.80779804]
[1760085049026,0.00640001,4341.9,4341.8,15.13639804]
[1760085049583,0.00640001,4341.9,4341.8,9.92926143]
[1760085049951,0.00640001,4341.9,4341.8,12.32626143]
[1760085052575,0.00640001,4341.9,4341.8,17.20479804]
[1760085052766,0.00640001,4341.9,4341.8,17.53339804]
[1760085060519,0.00640001,4341.9,4341.8,19.45339804]
[1760085060813,0.002,4342.4,4342.3,2.30292702]
[1760085060996,0.002,4342.4,4342.3,9.83844654]
[1760085061170,0.4501,4342.4,4342.3,0.94844654]
[1760085061385,0.002,4342.4,4342.3,7.44144654]
[1760085061590,0.002,4342.4,4342.3,9.74437356]
[1760085061889,0.002,4342.4,4342.3,0.94844654]
[1760085062110,0.002,4342.4,4342.3,6.493]
[1760085062630,0.0012,4342.4,4342.3,6.493]
[1760085063212,0.0012,4342.4,4342.2,2.30297612]
[1760085063389,0.0012,4342.4,4342.3,6.493]
[1760085063724,0.0012,4342.4,4342.3,8.79592702]
[1760085064428,0.0012,4342.4,4342.3,2.30292702]
[1760085064629,0.0012,4342.4,4342.3,8.79592702]
[1760085065150,0.0012,4342.4,4342.3,6.493]
[1760085065335,0.4493,4342.4,4341.9,2.30313466]
[1760085065492,0.0012,4342.4,4342.0,8.79604117]
[1760085065691,0.4481,4342.3,4342.0,6.493]
[1760085065907,0.4481,4342.2,4341.8,2.30415761]
[1760085066108,0.4481,4342.1,4341.8,2.30415761]
[1760085066328,0.4481,4342.1,4341.9,6.493]
[1760085066512,0.4481,4342.0,4341.8,0.001]
[1760085066718,0.1144,4342.1,4341.9,6.493]
[1760085067416,0.4481,4342.0,4341.9,6.493]
[1760085069352,0.4481,4342.0,4341.8,0.001]
[1760085069557,0.6638,4341.9,4341.8,0.001]
[1760085069787,0.6638,4341.9,4341.8,3.865]
[1760085070587,0.4481,4341.9,4341.8,3.865]
[1760085070791,0.1144,4342.1,4341.8,3.865]
[1760085070966,0.4481,4342.0,4341.8,3.865]
[1760085071165,0.4481,4341.9,4341.8,3.865]
[1760085071676,0.4481,4341.9,4341.8,0.001]
[1760085071877,0.1144,4342.1,4341.9,2.30313917]
[1760085072780,0.1144,4342.1,4342.0,2.30308613]
[1760085073108,0.0012,4342.4,4342.0,2.30308613]
[1760085073109,0.0012,4342.4,4342.2,2.30298005]
[1760085073291,0.0012,4342.4,4342.3,12.93776267]
[1760085076827,0.0012,4342.4,4342.3,15.33476267]
[1760085076972,0.0012,4342.4,4342.3,15.66336267]
[1760085077171,0.0012,4342.4,4342.3,17.88562321]
[1760085078312,0.0012,4342.4,4342.3,18.00002321]
[1760085081605,0.0012,4342.4,4342.3,17.67142321]
[1760085083121,0.0012,4342.4,4342.3,18.00002321]
[1760085083727,0.09227018,4344.3,4342.4,2.30287398]
[1760085083876,0.63109076,4344.9,4342.4,2.30287398]
[1760085083877,0.4481,4344.5,4343.8,4.14183565]
[1760085084086,0.4481,4344.5,4343.8,10.63383565]
[1760085084280,0.4481,4344.5,4343.8,12.93596742]
[1760085084893,0.0092,4343.9,4343.8,12.93596742]
[1760085085411,0.0092,4343.9,4343.8,10.63383565]
[1760085085609,0.4573,4343.9,4343.8,10.63383565]
[1760085085980,0.4573,4343.9,4343.8,6.492]
[1760085086183,0.0092,4343.9,4343.8,10.63383565]
[1760085088089,0.0092,4343.9,4343.8,12.93596742]
[1760085092982,0.0112,4343.9,4343.8,12.93596742]
[1760085093386,0.0112,4343.9,4343.8,14.69948622]
[1760085093615,0.0112,4343.9,4343.8,15.02808622]
[1760085093934,0.0112,4343.9,4343.8,15.14248622]
[1760085098912,0.0112,4343.9,4343.8,15.14248622]
[1760085099704,0.0112,4343.9,4343.8,15.23471597]